[Event "Betsys MČR v online bleskovém šachu 2021"]
[Site "Chess.com"]
[Date "2021.04.17"]
[Round "7"]
[White "kecalk"]
[Black "Koli05"]
[Result "1-0"]
[WhiteElo "2153"]
[BlackElo "1849"]
[TimeControl "180+1"]
[EndTime "10:11:40 PDT"]
[Termination "Uživatel kecalk zvítězil po vzdání soupeře"]

1. c4 {[%clk 0:03:00.9]} 1... c5 {[%clk 0:02:55.1]} 2. Nf3 {[%clk 0:03:00.6]}
2... Nf6 {[%clk 0:02:51.7]} 3. Nc3 {[%clk 0:02:59.8]} 3... d5 {[%clk 0:02:51.4]}
4. cxd5 {[%clk 0:02:59.6]} 4... Nxd5 {[%clk 0:02:50.2]} 5. e3 {[%clk 0:02:59.4]}
5... Nc6 {[%clk 0:02:40.6]} 6. Qc2 {[%clk 0:02:46.3]} 6... e6 {[%clk 0:02:36.8]}
7. b3 {[%clk 0:02:46.3]} 7... Be7 {[%clk 0:02:34.9]} 8. Bb2 {[%clk 0:02:45.9]}
8... Ndb4 {[%clk 0:02:33.9]} 9. Qb1 {[%clk 0:02:45.2]} 9... Bf6 {[%clk
0:02:32.9]} 10. a3 {[%clk 0:02:42.3]} 10... Nd5 {[%clk 0:02:31.2]} 11. Qc2
{[%clk 0:02:40.2]} 11... O-O {[%clk 0:02:28.8]} 12. Bd3 {[%clk 0:02:31.7]} 12...
g6 {[%clk 0:02:22.9]} 13. Nxd5 {[%clk 0:02:21.4]} 13... Bxb2 {[%clk 0:02:18.6]}
14. Qxb2 {[%clk 0:02:20.7]} 14... exd5 {[%clk 0:02:14.6]} 15. h4 {[%clk
0:02:09.9]} 15... h5 {[%clk 0:02:12.6]} 16. Rc1 {[%clk 0:02:00]} 16... b6 {[%clk
0:02:11.3]} 17. Bb5 {[%clk 0:01:59.7]} 17... Na5 {[%clk 0:01:46.2]} 18. d4
{[%clk 0:01:30.9]} 18... cxd4 {[%clk 0:01:35.3]} 19. b4 {[%clk 0:01:27.3]} 19...
Nb7 {[%clk 0:00:56.3]} 20. Qxd4 {[%clk 0:01:18.5]} 20... Bd7 {[%clk 0:00:47.8]}
21. Bd3 {[%clk 0:01:13.4]} 21... Be6 {[%clk 0:00:45.1]} 22. Ne5 {[%clk
0:01:10.7]} 22... Qf6 {[%clk 0:00:32.8]} 23. Nf3 {[%clk 0:00:48]} 23... Qxd4
{[%clk 0:00:31.4]} 24. Nxd4 {[%clk 0:00:48.9]} 24... Rac8 {[%clk 0:00:30.9]} 25.
O-O {[%clk 0:00:44.4]} 25... Kg7 {[%clk 0:00:27.4]} 26. g3 {[%clk 0:00:42.4]}
26... Nd6 {[%clk 0:00:26.9]} 27. Ba6 {[%clk 0:00:31.4]} 27... Rxc1 {[%clk
0:00:20.1]} 28. Rxc1 {[%clk 0:00:32.3]} 28... Rd8 {[%clk 0:00:17.1]} 29. Rc7
{[%clk 0:00:30.8]} 29... Rd7 {[%clk 0:00:16.4]} 30. Nxe6+ {[%clk 0:00:30.3]}
30... fxe6 {[%clk 0:00:10.8]} 31. Rxd7+ {[%clk 0:00:31.2]} 31... Nf7 {[%clk
0:00:10.9]} 32. Rxa7 {[%clk 0:00:31]} 32... Kf6 {[%clk 0:00:10]} 33. a4 {[%clk
0:00:31.9]} 1-0

[Event "Betsys MČR v online bleskovém šachu 2021"]
[Site "Chess.com"]
[Date "2021.04.17"]
[Round "7"]
[White "Krtecci"]
[Black "maelic"]
[Result "1-0"]
[WhiteElo "2079"]
[BlackElo "1778"]
[TimeControl "180+1"]
[EndTime "10:11:40 PDT"]
[Termination "Uživatel Krtecci zvítězil matem"]

1. e4 {[%clk 0:03:00.9]} 1... e6 {[%clk 0:02:57.8]} 2. d4 {[%clk 0:03:00.7]}
2... d5 {[%clk 0:02:55.8]} 3. Nc3 {[%clk 0:02:56.2]} 3... Bb4 {[%clk 0:02:55.3]}
4. e5 {[%clk 0:02:56.1]} 4... c5 {[%clk 0:02:55.6]} 5. a3 {[%clk 0:02:55.7]}
5... Bxc3+ {[%clk 0:02:55.7]} 6. bxc3 {[%clk 0:02:56.6]} 6... Qc7 {[%clk
0:02:55.7]} 7. Qg4 {[%clk 0:02:48]} 7... f5 {[%clk 0:02:55.4]} 8. Qg3 {[%clk
0:02:42.4]} 8... b6 {[%clk 0:02:53.9]} 9. Bb5+ {[%clk 0:02:38.6]} 9... Nc6
{[%clk 0:02:43.8]} 10. Ne2 {[%clk 0:02:35.4]} 10... Ne7 {[%clk 0:02:31.7]} 11.
O-O {[%clk 0:02:34.5]} 11... Bd7 {[%clk 0:02:23.3]} 12. a4 {[%clk 0:02:30.1]}
12... Na5 {[%clk 0:02:23]} 13. Bg5 {[%clk 0:02:23.6]} 13... Ng6 {[%clk
0:01:38.6]} 14. h4 {[%clk 0:02:18.7]} 14... a6 {[%clk 0:01:28.8]} 15. Bxd7+
{[%clk 0:01:59.1]} 15... Qxd7 {[%clk 0:01:29.7]} 16. h5 {[%clk 0:01:58.5]} 16...
Ne7 {[%clk 0:01:29.7]} 17. Nf4 {[%clk 0:01:51.7]} 17... cxd4 {[%clk 0:01:19]}
18. cxd4 {[%clk 0:01:50.5]} 18... Rc8 {[%clk 0:01:17]} 19. c3 {[%clk 0:01:40.8]}
19... Nc4 {[%clk 0:01:06.7]} 20. Rfb1 {[%clk 0:01:35.4]} 20... Nc6 {[%clk
0:00:56.1]} 21. Ra2 {[%clk 0:01:31.1]} 21... N6a5 {[%clk 0:00:51.5]} 22. Bh4
{[%clk 0:01:17]} 22... Qf7 {[%clk 0:00:47]} 23. Qg5 {[%clk 0:01:12.4]} 23... Kd7
{[%clk 0:00:38.2]} 24. Re2 {[%clk 0:01:05.4]} 24... Rc6 {[%clk 0:00:35.1]} 25.
Rb4 {[%clk 0:00:48.2]} 25... Rhc8 {[%clk 0:00:34.1]} 26. Kh2 {[%clk 0:00:42.1]}
26... R6c7 {[%clk 0:00:20.4]} 27. Nxd5 {[%clk 0:00:39.8]} 27... exd5 {[%clk
0:00:20.4]} 28. e6+ {[%clk 0:00:39.7]} 28... Qxe6 {[%clk 0:00:21]} 29. Rxe6
{[%clk 0:00:38.3]} 29... Kxe6 {[%clk 0:00:21.9]} 30. h6 {[%clk 0:00:30.8]} 30...
g6 {[%clk 0:00:21.9]} 31. Qf6+ {[%clk 0:00:29.9]} 31... Kd7 {[%clk 0:00:20.9]}
32. Bg3 {[%clk 0:00:22.5]} 32... Rc6 {[%clk 0:00:07.9]} 33. Qf7+ {[%clk
0:00:22.7]} 33... Kd8 {[%clk 0:00:08.1]} 34. Bh4+ {[%clk 0:00:22.8]} 34... Rf6
{[%clk 0:00:07]} 35. Bxf6# {[%clk 0:00:22.9]} 1-0

[Event "Betsys MČR v online bleskovém šachu 2021"]
[Site "Chess.com"]
[Date "2021.04.17"]
[Round "7"]
[White "jankrelina07"]
[Black "ikovacs"]
[Result "1-0"]
[WhiteElo "1530"]
[BlackElo "1062"]
[TimeControl "180+1"]
[EndTime "10:11:46 PDT"]
[Termination "Uživatel jankrelina07 zvítězil na čas"]

1. d4 {[%clk 0:03:00.9]} 1... d5 {[%clk 0:02:54.8]} 2. Bf4 {[%clk 0:03:00.5]}
2... e6 {[%clk 0:02:53.7]} 3. e3 {[%clk 0:02:59.8]} 3... Bd6 {[%clk 0:02:54.1]}
4. Bg3 {[%clk 0:02:58.9]} 4... Bxg3 {[%clk 0:02:52.9]} 5. hxg3 {[%clk
0:02:57.9]} 5... Nf6 {[%clk 0:02:53.4]} 6. Bd3 {[%clk 0:02:57.7]} 6... h6 {[%clk
0:02:51.9]} 7. c3 {[%clk 0:02:57.8]} 7... Nc6 {[%clk 0:02:48.9]} 8. Nf3 {[%clk
0:02:57.7]} 8... b6 {[%clk 0:02:47.4]} 9. Nbd2 {[%clk 0:02:57.4]} 9... a5 {[%clk
0:02:46.1]} 10. Qa4 {[%clk 0:02:53.1]} 10... Bd7 {[%clk 0:02:45.1]} 11. Bb5
{[%clk 0:02:49.7]} 11... Nb8 {[%clk 0:02:40.2]} 12. Bxd7+ {[%clk 0:02:47.4]}
12... Qxd7 {[%clk 0:02:39.9]} 13. Qc2 {[%clk 0:02:47.1]} 13... Qb5 {[%clk
0:02:33]} 14. Ne5 {[%clk 0:02:44.8]} 14... Nbd7 {[%clk 0:02:20.9]} 15. Ndf3
{[%clk 0:02:43.3]} 15... Nxe5 {[%clk 0:02:14.7]} 16. Nxe5 {[%clk 0:02:42.5]}
16... Nd7 {[%clk 0:02:13.4]} 17. Nxd7 {[%clk 0:02:40.8]} 17... Qxd7 {[%clk
0:02:11.3]} 18. g4 {[%clk 0:02:40.9]} 18... c5 {[%clk 0:02:03.9]} 19. g5 {[%clk
0:02:40]} 19... h5 {[%clk 0:01:54.5]} 20. Qe2 {[%clk 0:02:18.6]} 20... g6 {[%clk
0:01:49.7]} 21. Qf3 {[%clk 0:02:16.4]} 21... cxd4 {[%clk 0:01:41.7]} 22. exd4
{[%clk 0:02:15.6]} 22... b5 {[%clk 0:01:32.8]} 23. g4 {[%clk 0:02:11.5]} 23...
b4 {[%clk 0:01:11.9]} 24. gxh5 {[%clk 0:02:07.1]} 24... gxh5 {[%clk 0:01:03.2]}
25. Qf6 {[%clk 0:01:51.4]} 25... Rg8 {[%clk 0:00:30.5]} 26. Rxh5 {[%clk
0:01:37.4]} 26... Qe7 {[%clk 0:00:29.5]} 27. Qxe7+ {[%clk 0:01:14.7]} 27... Kxe7
{[%clk 0:00:28.2]} 28. O-O-O {[%clk 0:01:14.6]} 28... bxc3 {[%clk 0:00:27.7]}
29. bxc3 {[%clk 0:01:14.1]} 29... Rac8 {[%clk 0:00:25.9]} 30. Kc2 {[%clk
0:01:13.7]} 30... Rc4 {[%clk 0:00:23]} 31. f4 {[%clk 0:01:12.2]} 31... Ra4
{[%clk 0:00:22.1]} 32. Kb3 {[%clk 0:01:08.9]} 32... Rc4 {[%clk 0:00:19.6]} 33.
Rh3 {[%clk 0:01:05.4]} 33... Rb8+ {[%clk 0:00:18]} 34. Kc2 {[%clk 0:01:03.9]}
34... a4 {[%clk 0:00:16.8]} 35. Rb1 {[%clk 0:01:00.3]} 35... Rxb1 {[%clk
0:00:13.2]} 36. Kxb1 {[%clk 0:00:59.9]} 36... a3 {[%clk 0:00:12.4]} 37. Kc2
{[%clk 0:00:59.9]} 37... Rc7 {[%clk 0:00:08.9]} 38. Kb3 {[%clk 0:00:59.2]} 38...
Ra7 {[%clk 0:00:07.3]} 39. Rh7 {[%clk 0:00:55]} 39... Kd6 {[%clk 0:00:05.6]} 40.
Rh8 {[%clk 0:00:55]} 40... Rb7+ {[%clk 0:00:03.6]} 41. Kxa3 {[%clk 0:00:54]}
41... Ra7+ {[%clk 0:00:02.3]} 42. Kb2 {[%clk 0:00:52.6]} 42... Rb7+ {[%clk
0:00:01.8]} 43. Kc2 {[%clk 0:00:50.9]} 43... Kc6 {[%clk 0:00:01.3]} 44. Rc8+
{[%clk 0:00:47.4]} 1-0

[Event "Betsys MČR v online bleskovém šachu 2021"]
[Site "Chess.com"]
[Date "2021.04.17"]
[Round "7"]
[White "Mitram64"]
[Black "Joanna23W"]
[Result "0-1"]
[WhiteElo "2067"]
[BlackElo "2676"]
[TimeControl "180+1"]
[EndTime "10:11:48 PDT"]
[Termination "Uživatel Joanna23W zvítězil na čas"]

1. d4 {[%clk 0:02:45.5]} 1... Nf6 {[%clk 0:02:58.2]} 2. Nf3 {[%clk 0:02:43.4]}
2... g6 {[%clk 0:02:55.7]} 3. Bf4 {[%clk 0:02:41.7]} 3... Bg7 {[%clk 0:02:55.5]}
4. e3 {[%clk 0:02:41]} 4... d6 {[%clk 0:02:55.3]} 5. Be2 {[%clk 0:02:39.3]} 5...
Nh5 {[%clk 0:02:55.3]} 6. Bg5 {[%clk 0:02:38.4]} 6... h6 {[%clk 0:02:55]} 7. Bh4
{[%clk 0:02:38]} 7... c5 {[%clk 0:02:52.4]} 8. dxc5 {[%clk 0:02:19.8]} 8... Bxb2
{[%clk 0:02:20.9]} 9. Nbd2 {[%clk 0:02:19.2]} 9... dxc5 {[%clk 0:02:16.4]} 10.
Rb1 {[%clk 0:02:15.3]} 10... Bg7 {[%clk 0:02:15.5]} 11. O-O {[%clk 0:02:10.5]}
11... O-O {[%clk 0:02:09.5]} 12. Ne1 {[%clk 0:01:56.7]} 12... Nf6 {[%clk
0:02:08.3]} 13. Nd3 {[%clk 0:01:55.7]} 13... Qc7 {[%clk 0:02:02.8]} 14. Nc4
{[%clk 0:01:51]} 14... Ne4 {[%clk 0:01:51]} 15. Bg3 {[%clk 0:01:38.7]} 15... Qd8
{[%clk 0:01:37.5]} 16. Qe1 {[%clk 0:01:03]} 16... Nc3 {[%clk 0:01:33]} 17. Rc1
{[%clk 0:00:54.2]} 17... Nxe2+ {[%clk 0:01:31]} 18. Qxe2 {[%clk 0:00:53]} 18...
Nd7 {[%clk 0:01:26.8]} 19. Rfd1 {[%clk 0:00:50.8]} 19... Qe8 {[%clk 0:01:21.3]}
20. Nf4 {[%clk 0:00:42.6]} 20... Nb6 {[%clk 0:00:57.9]} 21. Rd2 {[%clk
0:00:32.8]} 21... Qc6 {[%clk 0:00:42.3]} 22. Rcd1 {[%clk 0:00:29.3]} 22... Bf5
{[%clk 0:00:40.9]} 23. f3 {[%clk 0:00:24.1]} 23... e5 {[%clk 0:00:34.5]} 24. Nd5
{[%clk 0:00:20.2]} 24... Nxd5 {[%clk 0:00:33.4]} 25. Rxd5 {[%clk 0:00:19.5]}
25... Be6 {[%clk 0:00:31.4]} 26. Rd6 {[%clk 0:00:19.4]} 26... Qb5 {[%clk
0:00:29.9]} 27. Rxe6 {[%clk 0:00:16.8]} 27... fxe6 {[%clk 0:00:29.8]} 28. Rd6
{[%clk 0:00:10.5]} 28... Rad8 {[%clk 0:00:29.3]} 29. Rxe6 {[%clk 0:00:07]} 29...
Qb1+ {[%clk 0:00:19.9]} 30. Kf2 {[%clk 0:00:05]} 30... b5 {[%clk 0:00:20]} 31.
Nxe5 {[%clk 0:00:02.4]} 31... Qc1 {[%clk 0:00:18.3]} 0-1

[Event "Betsys MČR v online bleskovém šachu 2021"]
[Site "Chess.com"]
[Date "2021.04.17"]
[Round "7"]
[White "Drak1961"]
[Black "sodikus"]
[Result "1/2-1/2"]
[WhiteElo "2098"]
[BlackElo "2277"]
[TimeControl "180+1"]
[EndTime "10:11:50 PDT"]
[Termination "Remíza dohodou"]

1. d4 {[%clk 0:02:58]} 1... Nf6 {[%clk 0:01:43.8]} 2. Nf3 {[%clk 0:02:56.6]}
2... e6 {[%clk 0:01:43.9]} 3. g3 {[%clk 0:02:56]} 3... b6 {[%clk 0:01:44.2]} 4.
Bg2 {[%clk 0:02:55.2]} 4... Bb7 {[%clk 0:01:44.7]} 5. O-O {[%clk 0:02:54.4]}
5... Be7 {[%clk 0:01:45.4]} 6. c4 {[%clk 0:02:53.6]} 6... O-O {[%clk 0:01:45.6]}
7. Re1 {[%clk 0:02:52.5]} 7... Na6 {[%clk 0:01:44.8]} 8. Nc3 {[%clk 0:02:49.9]}
8... Ne4 {[%clk 0:01:43.1]} 9. Qc2 {[%clk 0:02:41.3]} 9... Nxc3 {[%clk
0:01:43.2]} 10. Ng5 {[%clk 0:02:36.1]} 10... Bxg5 {[%clk 0:01:32.2]} 11. Bxg5
{[%clk 0:02:20.3]} 11... Nxe2+ {[%clk 0:01:11.8]} 12. Rxe2 {[%clk 0:02:16.5]}
12... Qc8 {[%clk 0:01:11.8]} 13. d5 {[%clk 0:01:22]} 13... c6 {[%clk 0:01:10.9]}
14. d6 {[%clk 0:01:17.9]} 14... c5 {[%clk 0:01:10.8]} 15. Be7 {[%clk 0:01:16]}
15... Re8 {[%clk 0:01:08.4]} 16. Bf1 {[%clk 0:01:04.5]} 16... Qc6 {[%clk
0:01:02.4]} 17. f3 {[%clk 0:00:50.5]} 17... Nb4 {[%clk 0:01:00.2]} 18. Qd2
{[%clk 0:00:45.8]} 18... Rab8 {[%clk 0:00:42.1]} 19. Bg2 {[%clk 0:00:43]} 19...
b5 {[%clk 0:00:38.9]} 20. a3 {[%clk 0:00:33.7]} 20... Na6 {[%clk 0:00:36]} 21.
Rc1 {[%clk 0:00:27.9]} 21... bxc4 {[%clk 0:00:35.6]} 22. Rxc4 {[%clk 0:00:26.6]}
22... Qd5 {[%clk 0:00:35.5]} 23. Qc2 {[%clk 0:00:23.1]} 23... Bc6 {[%clk
0:00:30.3]} 24. Rh4 {[%clk 0:00:20.3]} 24... Qf5 {[%clk 0:00:21.9]} 25. Qxf5
{[%clk 0:00:08.8]} 25... exf5 {[%clk 0:00:21.6]} 26. Rf4 {[%clk 0:00:05.4]}
26... g6 {[%clk 0:00:20.6]} 27. g4 {[%clk 0:00:04.8]} 27... fxg4 {[%clk
0:00:18.6]} 28. fxg4 {[%clk 0:00:04.1]} 28... Bxg2 {[%clk 0:00:18]} 29. Kxg2
{[%clk 0:00:02.5]} 29... Rb3 {[%clk 0:00:18]} 30. Ref2 {[%clk 0:00:01.9]}
1/2-1/2

[Event "Betsys MČR v online bleskovém šachu 2021"]
[Site "Chess.com"]
[Date "2021.04.17"]
[Round "7"]
[White "Klokan64"]
[Black "Sorcercream"]
[Result "1-0"]
[WhiteElo "1419"]
[BlackElo "1163"]
[TimeControl "180+1"]
[EndTime "10:11:50 PDT"]
[Termination "Uživatel Klokan64 zvítězil na čas"]

1. d4 {[%clk 0:03:00.9]} 1... d5 {[%clk 0:02:50.9]} 2. Nf3 {[%clk 0:02:59.6]}
2... Nf6 {[%clk 0:02:48.5]} 3. Bg5 {[%clk 0:02:58.3]} 3... Bf5 {[%clk
0:02:45.4]} 4. e3 {[%clk 0:02:53.1]} 4... e6 {[%clk 0:02:40.8]} 5. Bd3 {[%clk
0:02:49.2]} 5... Bg6 {[%clk 0:02:39.4]} 6. Ne5 {[%clk 0:02:38.8]} 6... Bxd3
{[%clk 0:02:36.8]} 7. Qxd3 {[%clk 0:02:30.9]} 7... c5 {[%clk 0:02:33.8]} 8. Qb5+
{[%clk 0:02:24.9]} 8... Nbd7 {[%clk 0:02:01.9]} 9. Nxd7 {[%clk 0:02:12]} 9...
Qxd7 {[%clk 0:02:00.8]} 10. Qxd7+ {[%clk 0:02:08]} 10... Nxd7 {[%clk 0:01:57.8]}
11. Nd2 {[%clk 0:01:57.2]} 11... f6 {[%clk 0:01:51.9]} 12. Bh4 {[%clk
0:01:56.5]} 12... g5 {[%clk 0:01:44.7]} 13. Bg3 {[%clk 0:01:56.1]} 13... cxd4
{[%clk 0:01:36.8]} 14. exd4 {[%clk 0:01:54.6]} 14... e5 {[%clk 0:01:33.2]} 15.
dxe5 {[%clk 0:01:49.1]} 15... Nxe5 {[%clk 0:01:30.2]} 16. O-O-O {[%clk
0:01:45.6]} 16... O-O-O {[%clk 0:01:27.7]} 17. Rhe1 {[%clk 0:01:41.2]} 17... Bd6
{[%clk 0:01:16.4]} 18. Nb3 {[%clk 0:01:34.7]} 18... Rhe8 {[%clk 0:01:12.5]} 19.
Rxd5 {[%clk 0:01:27.3]} 19... Bb4 {[%clk 0:01:00.9]} 20. Rxd8+ {[%clk 0:01:02]}
20... Rxd8 {[%clk 0:01:00.7]} 21. Rd1 {[%clk 0:01:00]} 21... Rxd1+ {[%clk
0:00:50.6]} 22. Kxd1 {[%clk 0:00:59.4]} 22... Kd7 {[%clk 0:00:50.5]} 23. Bxe5
{[%clk 0:00:56.9]} 23... fxe5 {[%clk 0:00:50.2]} 24. Ke2 {[%clk 0:00:56.5]}
24... Ke6 {[%clk 0:00:48.4]} 25. c3 {[%clk 0:00:55.5]} 25... Bd6 {[%clk
0:00:43.4]} 26. Nd2 {[%clk 0:00:52.7]} 26... Kf5 {[%clk 0:00:28.6]} 27. f3
{[%clk 0:00:52.2]} 27... h5 {[%clk 0:00:27]} 28. Ne4 {[%clk 0:00:47.3]} 28...
Bc7 {[%clk 0:00:22.3]} 29. Kd3 {[%clk 0:00:43.7]} 29... g4 {[%clk 0:00:20.5]}
30. fxg4+ {[%clk 0:00:39.5]} 30... hxg4 {[%clk 0:00:20.2]} 31. Ng3+ {[%clk
0:00:36.6]} 31... Kf4 {[%clk 0:00:16.5]} 32. Nh5+ {[%clk 0:00:34.3]} 32... Kf5
{[%clk 0:00:12.9]} 33. Ng3+ {[%clk 0:00:31.1]} 33... Kf4 {[%clk 0:00:13]} 34.
Ne2+ {[%clk 0:00:31]} 34... Kf5 {[%clk 0:00:12.6]} 35. c4 {[%clk 0:00:28.9]}
35... e4+ {[%clk 0:00:11.7]} 36. Kd4 {[%clk 0:00:25.2]} 36... b6 {[%clk
0:00:05.9]} 37. Kd5 {[%clk 0:00:24.9]} 1-0

[Event "Betsys MČR v online bleskovém šachu 2021"]
[Site "Chess.com"]
[Date "2021.04.17"]
[Round "7"]
[White "ritchi12"]
[Black "vikysachy"]
[Result "1-0"]
[WhiteElo "1162"]
[BlackElo "858"]
[TimeControl "180+1"]
[EndTime "10:11:50 PDT"]
[Termination "Uživatel ritchi12 zvítězil na čas"]

1. e4 {[%clk 0:03:00.9]} 1... e5 {[%clk 0:02:59.5]} 2. Nf3 {[%clk 0:03:00.4]}
2... Nc6 {[%clk 0:02:58.6]} 3. Nc3 {[%clk 0:02:58.9]} 3... Nf6 {[%clk
0:02:57.2]} 4. d4 {[%clk 0:02:57.1]} 4... d6 {[%clk 0:02:51.4]} 5. d5 {[%clk
0:02:56]} 5... Na5 {[%clk 0:02:36.9]} 6. Bd2 {[%clk 0:02:50.9]} 6... Qe7 {[%clk
0:02:24.8]} 7. Bb5+ {[%clk 0:02:49.1]} 7... c6 {[%clk 0:02:21.2]} 8. dxc6 {[%clk
0:02:47.9]} 8... Nxc6 {[%clk 0:02:19.5]} 9. Bxc6+ {[%clk 0:02:47.7]} 9... bxc6
{[%clk 0:02:17.6]} 10. Qe2 {[%clk 0:02:45.8]} 10... Qb7 {[%clk 0:02:14.2]} 11.
b3 {[%clk 0:02:39.9]} 11... Be7 {[%clk 0:02:11.4]} 12. O-O {[%clk 0:02:39.3]}
12... O-O {[%clk 0:02:09.8]} 13. Bg5 {[%clk 0:02:39.1]} 13... Bg4 {[%clk
0:02:02]} 14. h3 {[%clk 0:02:32.2]} 14... Bxh3 {[%clk 0:01:59.6]} 15. gxh3
{[%clk 0:02:30.9]} 15... Nh5 {[%clk 0:01:57.2]} 16. Bxe7 {[%clk 0:02:29.6]}
16... Qxe7 {[%clk 0:01:55.1]} 17. Rfd1 {[%clk 0:02:20.9]} 17... Qf6 {[%clk
0:01:53.2]} 18. Kf1 {[%clk 0:02:13.1]} 18... Qg6 {[%clk 0:01:47]} 19. Nh4 {[%clk
0:02:10.2]} 19... Qg5 {[%clk 0:01:42.4]} 20. Ng2 {[%clk 0:02:05.9]} 20... Qf4
{[%clk 0:01:33.7]} 21. Nxf4 {[%clk 0:02:04.6]} 21... Nxf4 {[%clk 0:01:31.4]} 22.
Qg4 {[%clk 0:02:03]} 22... g6 {[%clk 0:01:28.6]} 23. Rxd6 {[%clk 0:01:57.2]}
23... Rab8 {[%clk 0:01:15.4]} 24. Rxc6 {[%clk 0:01:54.6]} 24... Rbd8 {[%clk
0:01:11.4]} 25. Rd1 {[%clk 0:01:47.5]} 25... Rxd1+ {[%clk 0:01:05.3]} 26. Nxd1
{[%clk 0:01:45.2]} 26... Ne6 {[%clk 0:00:56.7]} 27. a4 {[%clk 0:01:32.8]} 27...
Nd4 {[%clk 0:00:53.2]} 28. Rd6 {[%clk 0:01:26.1]} 28... Nxc2 {[%clk 0:00:46.5]}
29. Ne3 {[%clk 0:01:22.3]} 29... Nd4 {[%clk 0:00:39.5]} 30. Kg2 {[%clk
0:01:11.8]} 30... Nxb3 {[%clk 0:00:35.6]} 31. Nd5 {[%clk 0:01:08.3]} 31... Nd4
{[%clk 0:00:30.3]} 32. Ne7+ {[%clk 0:01:07.8]} 32... Kh8 {[%clk 0:00:28.2]} 33.
Nd5 {[%clk 0:01:02.4]} 33... Ne6 {[%clk 0:00:20.7]} 34. Ra6 {[%clk 0:01:00.7]}
34... Nf4+ {[%clk 0:00:20.3]} 35. Nxf4 {[%clk 0:00:58.6]} 35... exf4 {[%clk
0:00:19.9]} 36. Qxf4 {[%clk 0:00:58.7]} 36... Kg8 {[%clk 0:00:19.8]} 37. Rxa7
{[%clk 0:00:58.4]} 37... Kg7 {[%clk 0:00:19.9]} 38. Qe5+ {[%clk 0:00:57.2]}
38... Kg8 {[%clk 0:00:20]} 39. Rb7 {[%clk 0:00:55.1]} 39... h6 {[%clk
0:00:16.2]} 40. a5 {[%clk 0:00:54.8]} 40... Ra8 {[%clk 0:00:13.1]} 41. Rb8+
{[%clk 0:00:52.1]} 41... Rxb8 {[%clk 0:00:11.9]} 42. Qxb8+ {[%clk 0:00:52]}
42... Kg7 {[%clk 0:00:11.7]} 43. a6 {[%clk 0:00:52.1]} 43... Kf6 {[%clk
0:00:09.4]} 44. a7 {[%clk 0:00:52.3]} 44... Kg5 {[%clk 0:00:08.3]} 45. a8=Q
{[%clk 0:00:51.9]} 45... Kf6 {[%clk 0:00:02.2]} 46. Qf4+ {[%clk 0:00:51.1]} 1-0

[Event "Betsys MČR v online bleskovém šachu 2021"]
[Site "Chess.com"]
[Date "2021.04.17"]
[Round "7"]
[White "TheFr0zenSun"]
[Black "fm_magua"]
[Result "1/2-1/2"]
[WhiteElo "2248"]
[BlackElo "2515"]
[TimeControl "180+1"]
[EndTime "10:11:52 PDT"]
[Termination "Remíza dohodou"]

1. d4 {[%clk 0:02:56.4]} 1... Nf6 {[%clk 0:03:00.3]} 2. Nf3 {[%clk 0:02:54.9]}
2... g6 {[%clk 0:03:00.7]} 3. c4 {[%clk 0:02:53.7]} 3... Bg7 {[%clk 0:03:01]} 4.
Nc3 {[%clk 0:02:54.3]} 4... d6 {[%clk 0:03:01.3]} 5. e4 {[%clk 0:02:53.7]} 5...
O-O {[%clk 0:03:01.8]} 6. Be2 {[%clk 0:02:54.1]} 6... e5 {[%clk 0:03:02]} 7. Be3
{[%clk 0:02:54.3]} 7... Ng4 {[%clk 0:03:01.8]} 8. Bg5 {[%clk 0:02:53.2]} 8... f6
{[%clk 0:03:02.2]} 9. Bh4 {[%clk 0:02:53.2]} 9... g5 {[%clk 0:03:02.3]} 10. Bg3
{[%clk 0:02:53.1]} 10... Nh6 {[%clk 0:03:01.9]} 11. Qd2 {[%clk 0:02:38.2]} 11...
Nc6 {[%clk 0:03:01.2]} 12. d5 {[%clk 0:02:37.8]} 12... Ne7 {[%clk 0:03:01.3]}
13. h3 {[%clk 0:02:18.4]} 13... Nf7 {[%clk 0:03:00.4]} 14. Nh2 {[%clk
0:02:17.9]} 14... Ng6 {[%clk 0:03:00]} 15. O-O-O {[%clk 0:02:02.3]} 15... Nf4
{[%clk 0:02:59.8]} 16. Rhg1 {[%clk 0:01:59.1]} 16... f5 {[%clk 0:02:53.9]} 17.
exf5 {[%clk 0:01:57]} 17... Bxf5 {[%clk 0:02:53.4]} 18. Bxf4 {[%clk 0:01:50.9]}
18... exf4 {[%clk 0:02:53.1]} 19. Bd3 {[%clk 0:01:51]} 19... Bxd3 {[%clk
0:02:49.9]} 20. Qxd3 {[%clk 0:01:51]} 20... Ne5 {[%clk 0:02:50.7]} 21. Qe2
{[%clk 0:01:48.2]} 21... b5 {[%clk 0:02:35.7]} 22. cxb5 {[%clk 0:01:44]} 22...
a6 {[%clk 0:02:35.7]} 23. bxa6 {[%clk 0:01:42.1]} 23... Qc8 {[%clk 0:02:35.4]}
24. Nf3 {[%clk 0:01:39.9]} 24... Rxa6 {[%clk 0:02:31.1]} 25. Nxg5 {[%clk
0:01:30.7]} 25... Re8 {[%clk 0:02:12.5]} 26. Qh5 {[%clk 0:01:18.1]} 26... h6
{[%clk 0:02:01.6]} 27. Ne6 {[%clk 0:01:17.7]} 27... Rxe6 {[%clk 0:01:57.3]} 28.
dxe6 {[%clk 0:01:16.6]} 28... Qxe6 {[%clk 0:01:58.2]} 29. Qe2 {[%clk 0:01:14.9]}
29... Rxa2 {[%clk 0:01:53.4]} 30. Nxa2 {[%clk 0:01:08.9]} 30... Qxa2 {[%clk
0:01:53]} 31. Qc2 {[%clk 0:00:47.2]} 31... Nc4 {[%clk 0:01:44.6]} 32. Rd3 {[%clk
0:00:41.7]} 32... Qa1+ {[%clk 0:01:20]} 33. Qb1 {[%clk 0:00:38.9]} 33... Bxb2+
{[%clk 0:01:19.4]} 34. Kc2 {[%clk 0:00:37.7]} 34... Qa4+ {[%clk 0:01:17.7]} 35.
Rb3 {[%clk 0:00:37.3]} 35... Na3+ {[%clk 0:01:08.6]} 36. Kxb2 {[%clk 0:00:32.4]}
36... Nxb1 {[%clk 0:01:08.4]} 37. Rxb1 {[%clk 0:00:32]} 37... Qd4+ {[%clk
0:01:08.3]} 38. Ka2 {[%clk 0:00:29.5]} 38... Qxf2+ {[%clk 0:01:06.6]} 39. R1b2
{[%clk 0:00:30.1]} 39... Qa7+ {[%clk 0:01:05]} 40. Ra3 {[%clk 0:00:29.9]} 40...
Qc5 {[%clk 0:01:02.6]} 41. Rf3 {[%clk 0:00:29.7]} 41... Qc4+ {[%clk 0:00:56.3]}
42. Kb1 {[%clk 0:00:27.6]} 42... d5 {[%clk 0:00:51.1]} 43. Rbf2 {[%clk
0:00:27.5]} 43... Qb4+ {[%clk 0:00:37.8]} 44. Kc1 {[%clk 0:00:25.8]} 44... Qc4+
{[%clk 0:00:36.1]} 45. Kd1 {[%clk 0:00:25.9]} 45... Qa4+ {[%clk 0:00:33.8]} 46.
Kc1 {[%clk 0:00:25.2]} 1/2-1/2